[Event "Prague Open 2024"]
[Site "Prague"]
[Date "2024.01.05"]
[Round "1.11"]
[White "Kapolka, Juraj"]
[Black "Morchiashvili, Bachana"]
[Result "0-1"]
[ECO "E92"]
[WhiteElo "1854"]
[BlackElo "2295"]
[Annotator "ChessBase"]
[PlyCount "79"]
[EventDate "2024.01.02"]
[EventType "swiss"]
[EventCountry "CZE"]
[SourceTitle "playchess.com"]
[Source "ChessBase"]
[SourceQuality "1"]
[TimeControl "40/5400+30:1800+30"]

1. d4 {[%emt 0:00:06]} Nf6 {[%emt 0:00:03]} 2. c4 {[%emt 0:00:20]} g6 {[%emt 0:00:08]} 3. Nf3 {[%emt 0:00:26]} Bg7 {[%emt 0:00:07]} 4. Nc3 {[%emt 0:00:46]} O-O {[%emt 0:00:10]} 5. e4 {[%emt 0:00:27]} d6 {[%emt 0:00:09]} 6. Be2 {[%emt 0:00:35]} e5 {[%emt 0:00:23]} 7. d5 {[%emt 0:00:43]} a5 {[%emt 0:00:14]} 8. O-O {[%emt 0:00:32]} Na6 {[%emt 0:00:12]} 9. a3 {[%emt 0:01:25]} Nc5 {[%emt 0:00:20]} 10. Qc2 {[%emt 0:00:40]} a4 {[%emt 0:01:43]} 11. Be3 {[%emt 0:01:37]} Nb3 {[%emt 0:13:02]} 12. Rad1 {[%emt 0:01:36]} Bd7 {[%emt 0:00:06]} 13. h3 {[%emt 0:10:26]} Nh5 {[%emt 0:02:36]} 14. Rfe1 {[%emt 0:03:43]} f5 {[%emt 0:05:59]} 15. Bg5 {[%emt 0:02:27]} Qe8 {[%emt 0:03:16]} 16. Bc1 {[%emt 0:04:35]} Nxc1 {[%emt 0:09:17]} 17. Qxc1 {[%emt 0:00:56]} Nf4 {[%emt 0:00:06]} 18. Kh2 {[%emt 0:05:04]} fxe4 {[%emt 0:03:07]} 19. Nxe4 {[%emt 0:00:31]} Bxh3 {[%emt 0:00:39]} 20. gxh3 {[%emt 0:05:57]} Nxe2 {[%emt 0:00:16]} 21. Rxe2 {[%emt 0:02:03]} Rxf3 {[%emt 0:00:05]} 22. Rg1 {[%emt 0:02:54]} Qf8 {[%emt 0:05:58]} 23. Rg4 {[%emt 0:03:32]} Bh6 {[%emt 0:01:52]} 24. Qc2 {[%emt 0:04:28]} Rb3 {[%emt 0:03:01]} 25. Re1 {[%emt 0:03:22]} Qf5 {[%emt 0:02:44]} 26. Qe2 {[%emt 0:01:17]} Rf8 {[%emt 0:02:29]} 27. Rh4 {[%emt 0:06:15]} Bf4+ {[%emt 0:01:23]} 28. Kg2 {[%emt 0:01:43]} h5 {[%emt 0:01:36]} 29. Rg1 {[%emt 0:03:22]} Re3 {[%emt 0:11:16]} 30. fxe3 {[%emt 0:02:41]} Qxe4+ {[%emt 0:00:10]} 31. Qf3 {[%emt 0:01:44]} Qc2+ {[%emt 0:01:48]} 32. Qf2 {[%emt 0:00:43]} Qxf2+ {[%emt 0:03:56]} 33. Kxf2 {[%emt 0:00:11]} Bg5+ {[%emt 0:00:51]} 34. Kg3 {[%emt 0:00:25]} Bxe3 {[%emt 0:01:10]} 35. Rg2 {[%emt 0:02:29]} Bf4+ {[%emt 0:00:46]} 36. Kf3 {[%emt 0:01:44]} Bg5+ {[%emt 0:00:35]} 37. Ke4 {[%emt 0:03:06]} Bxh4 {[%emt 0:00:37]} 38. Rxg6+ {[%emt 0:00:07]} Kh7 {[%emt 0:00:21]} 39. Rg2 {[%emt 0:00:31]} Rf4+ {[%emt 0:00:24]} 40. Ke3 {[%emt 0:00:11]} 0-1

[Event "Prague Open 2024"]
[Site "Prague"]
[Date "2024.01.05"]
[Round "1.12"]
[White "Keller, Peter"]
[Black "Roch, Florian"]
[Result "1-0"]
[ECO "B90"]
[WhiteElo "2289"]
[BlackElo "1854"]
[Annotator "RC"]
[PlyCount "101"]
[EventDate "2024.01.02"]
[EventType "swiss"]
[EventCountry "CZE"]
[SourceTitle "playchess.com"]
[Source "ChessBase"]
[SourceQuality "1"]
[TimeControl "40/5400+30:1800+30"]

1. e4 {[%emt 0:00:04]} c5 {[%emt 0:00:20]} 2. Nf3 {[%emt 0:00:09]} d6 {[%emt 0:00:08]} 3. d4 {[%emt 0:00:04]} cxd4 {[%emt 0:00:07]} 4. Nxd4 {[%emt 0:00:05]} Nf6 {[%emt 0:00:15]} 5. Nc3 {[%emt 0:00:11]} a6 {[%emt 0:00:06]} 6. f3 {[%emt 0:00:07]} e5 {[%emt 0:00:30]} 7. Nb3 {[%emt 0:00:06]} Be6 {[%emt 0:00:36]} 8. Be3 {[%emt 0:00:08]} Be7 {[%emt 0:00:25]} 9. Qd2 {[%emt 0:00:07]} h5 {[%emt 0:00:21]} 10. Be2 {[%emt 0:00:07]} Nbd7 {[%emt 0:02:29]} 11. Nd5 {[%emt 0:00:54]} Nxd5 {[%emt 0:03:15]} 12. exd5 {[%emt 0:00:06]} Bf5 {[%emt 0:00:06]} 13. O-O {[%emt 0:02:43]} Qc7 {[%emt 0:12:04]} 14. c4 {[%emt 0:01:30]} a5 {[%emt 0:00:27]} 15. a4 {[%emt 0:08:52]} b6 {[%emt 0:07:58]} 16. f4 {[%emt 0:02:51]} Bg4 {[%emt 0:09:55]} 17. Kh1 {[%emt 0:09:37]} Nc5 {[%emt 0:17:17]} 18. Nxc5 {[%emt 0:07:09]} bxc5 {[%emt 0:04:02]} 19. Bd3 {[%emt 0:06:33]} Bf6 {[%emt 0:04:46]} 20. f5 {[%emt 0:02:39]} h4 {[%emt 0:01:44]} 21. h3 {[%emt 0:00:06]} Bh5 {[%emt 0:00:36]} 22. Bg5 {[%emt 0:00:49]} Ke7 {[%emt 0:14:30]} 23. Bxf6+ {[%emt 0:14:47]} gxf6 {[%emt 0:03:22]} 24. Rae1 {[%emt 0:00:29]} Rag8 {[%emt 0:08:50]} 25. Rf2 {[%emt 0:01:50]} Rg3 {[%emt 0:00:43]} 26. Re4 {[%emt 0:00:46]} Qb6 {[%emt 0:01:15]} 27. Rxh4 {[%emt 0:01:27]} Rxd3 {[%emt 0:01:34]} 28. Qxd3 {[%emt 0:00:09]} Be2 {[%emt 0:01:43]} 29. Qg3 {[%emt 0:00:16]} Rxh4 {[%emt 0:01:02]} 30. Qxh4 {[%emt 0:00:05]} Qxb2 {[%emt 0:00:09]} 31. Kh2 {[%emt 0:00:20]} Qc2 {[%emt 0:01:57]} 32. Qh5 {[%emt 0:04:49]} Bxh5 {[%emt 0:00:35]} 33. Rxc2 {[%emt 0:00:04]} Bd1 {[%emt 0:00:04]} 34. Rc3 {[%emt 0:00:06]} Bxa4 {[%emt 0:00:20]} 35. g4 {[%emt 0:00:56]} Bd1 {[%emt 0:00:53]} 36. Kg3 {[%emt 0:05:31]} a4 {[%emt 0:00:45]} 37. Kf2 {[%emt 0:00:11]} Kf8 {[%emt 0:00:45]} 38. Ke1 {[%emt 0:00:16]} Bb3 {[%emt 0:00:13]} 39. Kd2 {[%emt 0:00:20]} Kg7 {[%emt 0:00:27]} 40. Rc1 {[%emt 0:00:50]} Kh6 {[%emt 0:00:46]} 41. h4 {[%emt 0:30:05]} Ba2 {[%emt 0:05:20]} 42. Kc3 {[%emt 0:00:00]} Bb3 {[%emt 0:00:24]} 43. Ra1 {[%emt 0:00:00]} Kg7 {[%emt 0:01:20]} 44. Rg1 {[%emt 0:00:00]} Ba2 {[%emt 0:03:43]} 45. g5 {[%emt 0:00:00]} fxg5 {[%emt 0:00:51]} 46. hxg5 {[%emt 0:00:00]} Kf8 {[%emt 0:01:17]} 47. Ra1 {[%emt 0:00:00]} Bb3 {[%emt 0:00:20]} 48. Rh1 {[%emt 0:00:00]} Ba2 {[%emt 0:02:03]} 49. Rh8+ {[%emt 0:00:00]} Ke7 {[%emt 0:00:31]} 50. f6+ {[%emt 0:00:00]} Kd7 {[%emt 0:00:13]} 51. g6 {[%emt 0:00:00]} 1-0

[Event "Prague Open 2024"]
[Site "Prague"]
[Date "2024.01.05"]
[Round "1.13"]
[White "Musil, Vitezslav"]
[Black "Tobak, Mikhail"]
[Result "0-1"]
[ECO "C55"]
[WhiteElo "1852"]
[BlackElo "2288"]
[Annotator "RC"]
[PlyCount "96"]
[EventDate "2024.01.02"]
[EventType "swiss"]
[EventCountry "CZE"]
[SourceTitle "playchess.com"]
[Source "ChessBase"]
[SourceQuality "1"]
[TimeControl "40/5400+30:1800+30"]

1. e4 {[%emt 0:00:02]} Nc6 {[%emt 0:00:08]} 2. Nf3 {[%emt 0:00:40]} e5 {[%emt 0:00:05]} 3. Bc4 {[%emt 0:00:29]} Nf6 {[%emt 0:00:13]} 4. d3 {[%emt 0:00:13]} h6 {[%emt 0:01:00]} 5. Be3 {[%emt 0:01:17]} d6 {[%emt 0:02:49]} 6. c3 {[%emt 0:01:53]} a6 {[%emt 0:02:17]} 7. Nbd2 {[%emt 0:02:58]} b5 {[%emt 0:10:20]} 8. Bb3 {[%emt 0:00:27]} Na5 {[%emt 0:00:51]} 9. Bc2 {[%emt 0:00:24]} Ng4 {[%emt 0:00:44]} 10. O-O {[%emt 0:00:50]} c5 {[%emt 0:04:21]} 11. Nb3 {[%emt 0:06:52]} Nxe3 {[%emt 0:00:25]} 12. fxe3 {[%emt 0:00:01]} Nc6 {[%emt 0:03:14]} 13. Qe1 {[%emt 0:05:00]} Be7 {[%emt 0:00:31]} 14. d4 {[%emt 0:02:11]} O-O {[%emt 0:01:53]} 15. a4 {[%emt 0:02:30]} b4 {[%emt 0:05:06]} 16. d5 {[%emt 0:03:11]} Na5 {[%emt 0:00:13]} 17. cxb4 {[%emt 0:00:22]} Nxb3 {[%emt 0:00:05]} 18. Bxb3 {[%emt 0:02:06]} Rb8 {[%emt 0:00:14]} 19. Bc4 {[%emt 0:05:23]} Rxb4 {[%emt 0:02:59]} 20. b3 {[%emt 0:00:51]} Qb6 {[%emt 0:07:00]} 21. Qe2 {[%emt 0:03:57]} Qa7 {[%emt 0:10:45]} 22. Nd2 {[%emt 0:04:46]} Bd8 {[%emt 0:03:31]} 23. Rf2 {[%emt 0:03:12]} Ba5 {[%emt 0:02:33]} 24. Raf1 {[%emt 0:02:36]} Rb6 {[%emt 0:01:21]} 25. Nf3 {[%emt 0:01:20]} Qe7 {[%emt 0:01:52]} 26. h3 {[%emt 0:01:50]} h5 {[%emt 0:11:41]} 27. Kh2 {[%emt 0:13:32]} h4 {[%emt 0:05:38]} 28. Rg1 {[%emt 0:03:54]} f5 {[%emt 0:00:40]} 29. Rgf1 {[%emt 0:04:03]} Rb8 {[%emt 0:10:28]} 30. exf5 {[%emt 0:10:14]} e4 {[%emt 0:00:23]} 31. f6 {[%emt 0:01:28]} Rxf6 {[%emt 0:06:35]} 32. Nxh4 {[%emt 0:01:15]} Qe5+ {[%emt 0:02:23]} 33. g3 {[%emt 0:01:07]} Bd8 {[%emt 0:00:28]} 34. Rxf6 {[%emt 0:01:51]} Bxf6 {[%emt 0:00:03]} 35. Ng6 {[%emt 0:02:17]} Qg5 {[%emt 0:00:41]} 36. Nf4 {[%emt 0:00:52]} Bd7 {[%emt 0:00:25]} 37. Qh5 {[%emt 0:00:54]} Qxh5 {[%emt 0:01:58]} 38. Nxh5 {[%emt 0:00:05]} Bc3 {[%emt 0:00:48]} 39. Nf4 {[%emt 0:02:04]} Rb4 {[%emt 0:01:38]} 40. Ne2 {[%emt 0:04:15]} Bd2 {[%emt 0:00:58]} 41. Nc1 {[%emt 0:30:02]} Bxa4 {[%emt 0:04:02]} 42. Bxa6 {[%emt 0:00:00]} Bb5 {[%emt 0:02:43]} 43. Bxb5 {[%emt 0:00:00]} Rxb5 {[%emt 0:00:08]} 44. Ne2 {[%emt 0:00:00]} Rxb3 {[%emt 0:00:46]} 45. Nf4 {[%emt 0:00:00]} c4 {[%emt 0:01:20]} 46. Ng6 {[%emt 0:00:00]} c3 {[%emt 0:00:34]} 47. Ne7+ {[%emt 0:01:12]} Kh7 {[%emt 0:00:08]} 48. Rf4 {[%emt 0:00:06]} Bxe3 {[%emt 0:00:19]} 0-1

[Event "Prague Open 2024"]
[Site "Prague"]
[Date "2024.01.05"]
[Round "1.14"]
[White "Jun, Rudolf"]
[Black "Platonovs, Nikolajs"]
[Result "1-0"]
[ECO "B52"]
[WhiteElo "2283"]
[BlackElo "1852"]
[Annotator "RC"]
[PlyCount "93"]
[EventDate "2024.01.02"]
[EventType "swiss"]
[EventCountry "CZE"]
[SourceTitle "playchess.com"]
[Source "ChessBase"]
[SourceQuality "1"]
[TimeControl "40/5400+30:1800+30"]

1. e4 {[%emt 0:00:04]} c5 {[%emt 0:00:05]} 2. Nf3 {[%emt 0:00:22]} d6 {[%emt 0:00:08]} 3. Bb5+ {[%emt 0:00:12]} Bd7 {[%emt 0:00:12]} 4. Bxd7+ {[%emt 0:00:11]} Qxd7 {[%emt 0:00:11]} 5. O-O {[%emt 0:00:08]} Nc6 {[%emt 0:00:08]} 6. c4 {[%emt 0:00:31]} Nf6 {[%emt 0:00:21]} 7. Re1 {[%emt 0:00:39]} g6 {[%emt 0:00:33]} 8. d4 {[%emt 0:00:37]} cxd4 {[%emt 0:00:09]} 9. Nxd4 {[%emt 0:00:09]} Bg7 {[%emt 0:00:12]} 10. f3 {[%emt 0:00:29]} O-O {[%emt 0:00:52]} 11. Be3 {[%emt 0:00:16]} Rfc8 {[%emt 0:02:13]} 12. Na3 {[%emt 0:05:10]} a6 {[%emt 0:04:30]} 13. Rc1 {[%emt 0:03:02]} Qc7 {[%emt 0:11:57]} 14. Nxc6 {[%emt 0:06:55]} bxc6 {[%emt 0:05:29]} 15. Qd2 {[%emt 0:04:33]} a5 {[%emt 0:08:09]} 16. b3 {[%emt 0:02:50]} Nd7 {[%emt 0:02:51]} 17. Nc2 {[%emt 0:01:45]} Rcb8 {[%emt 0:05:44]} 18. Rcd1 {[%emt 0:12:25]} Rb7 {[%emt 0:15:16]} 19. Bg5 {[%emt 0:04:22]} Nc5 {[%emt 0:02:21]} 20. Be3 {[%emt 0:04:45]} Na6 {[%emt 0:06:52]} 21. f4 {[%emt 0:03:36]} Rab8 {[%emt 0:08:47]} 22. Rb1 {[%emt 0:03:17]} Nb4 {[%emt 0:12:41]} 23. Nd4 {[%emt 0:01:11]} Na6 {[%emt 0:03:21]} 24. Nc2 {[%emt 0:03:43]} Nb4 {[%emt 0:01:12]} 25. a3 {[%emt 0:01:02]} Nxc2 {[%emt 0:00:28]} 26. Qxc2 {[%emt 0:00:02]} c5 {[%emt 0:00:47]} 27. Red1 {[%emt 0:02:38]} Rb6 {[%emt 0:02:43]} 28. e5 {[%emt 0:05:48]} dxe5 {[%emt 0:02:40]} 29. Rd5 {[%emt 0:00:32]} exf4 {[%emt 0:01:43]} 30. Rxc5 {[%emt 0:02:18]} Qb7 {[%emt 0:01:55]} 31. Bf2 {[%emt 0:02:18]} e5 {[%emt 0:00:45]} 32. Rd5 {[%emt 0:00:51]} Re6 {[%emt 0:00:38]} 33. Qd2 {[%emt 0:02:12]} Ree8 {[%emt 0:00:31]} 34. b4 {[%emt 0:01:03]} Qc7 {[%emt 0:00:29]} 35. c5 {[%emt 0:02:46]} e4 {[%emt 0:00:27]} 36. Rd7 {[%emt 0:03:17]} Qe5 {[%emt 0:00:08]} 37. Bd4 {[%emt 0:00:44]} e3 {[%emt 0:00:54]} 38. Bxe5 {[%emt 0:01:30]} exd2 {[%emt 0:00:08]} 39. Bxb8 {[%emt 0:00:07]} Re1+ {[%emt 0:00:45]} 40. Kf2 {[%emt 0:00:02]} Rxb1 {[%emt 0:00:44]} 41. Rxd2 {[%emt 0:30:15]} axb4 {[%emt 0:02:07]} 42. Rd8+ {[%emt 0:00:00]} Bf8 {[%emt 0:00:11]} 43. Bd6 {[%emt 0:00:00]} bxa3 {[%emt 0:00:12]} 44. Rxf8+ {[%emt 0:00:00]} Kg7 {[%emt 0:00:21]} 45. Ra8 {[%emt 0:00:00]} Rb2+ {[%emt 0:00:17]} 46. Kf3 {[%emt 0:00:00]} Rb3+ {[%emt 0:00:29]} 47. Ke4 1-0

[Event "Prague Open 2024"]
[Site "Prague"]
[Date "2024.01.05"]
[Round "1.15"]
[White "Bezeyko, Olexander"]
[Black "Vojta, Jakub"]
[Result "1-0"]
[ECO "B31"]
[WhiteElo "1851"]
[BlackElo "2261"]
[Annotator "RC"]
[PlyCount "101"]
[EventDate "2024.01.02"]
[EventType "swiss"]
[EventCountry "CZE"]
[SourceTitle "playchess.com"]
[Source "ChessBase"]
[SourceQuality "1"]
[TimeControl "40/5400+30:1800+30"]

1. e4 {[%emt 0:00:03]} c5 {[%emt 0:00:08]} 2. Nf3 {[%emt 0:00:04]} Nc6 {[%emt 0:00:16]} 3. Bb5 {[%emt 0:00:07]} g6 {[%emt 0:00:06]} 4. O-O {[%emt 0:00:04]} Bg7 {[%emt 0:00:05]} 5. c3 {[%emt 0:00:04]} e5 {[%emt 0:01:30]} 6. d4 {[%emt 0:00:07]} exd4 {[%emt 0:02:39]} 7. cxd4 {[%emt 0:00:06]} cxd4 {[%emt 0:10:50]} 8. Bf4 {[%emt 0:00:12]} Nge7 {[%emt 0:01:04]} 9. Bd6 {[%emt 0:07:02]} O-O {[%emt 0:01:39]} 10. Nbd2 {[%emt 0:00:13]} a6 {[%emt 0:08:53]} 11. Bd3 {[%emt 0:00:04]} b5 {[%emt 0:03:28]} 12. a4 {[%emt 0:01:26]} b4 {[%emt 0:11:14]} 13. a5 {[%emt 0:03:50]} Bb7 {[%emt 0:05:10]} 14. Nb3 {[%emt 0:08:56]} Re8 {[%emt 0:09:21]} 15. Re1 {[%emt 0:19:52]} Nc8 {[%emt 0:03:03]} 16. Bc5 {[%emt 0:04:02]} d6 {[%emt 0:01:46]} 17. Bxd4 {[%emt 0:00:40]} Nxd4 {[%emt 0:00:05]} 18. Nbxd4 {[%emt 0:01:05]} Bxd4 {[%emt 0:08:04]} 19. Nxd4 {[%emt 0:00:05]} Qf6 {[%emt 0:00:03]} 20. Qa4 {[%emt 0:02:20]} Ne7 {[%emt 0:02:56]} 21. Qxb4 {[%emt 0:01:07]} Rab8 {[%emt 0:01:27]} 22. Qa4 {[%emt 0:02:04]} Rec8 {[%emt 0:00:35]} 23. Rab1 {[%emt 0:11:50]} Rc5 {[%emt 0:01:32]} 24. Nf3 {[%emt 0:01:55]} Bc6 {[%emt 0:05:33]} 25. Qa3 {[%emt 0:01:09]} Qf4 {[%emt 0:00:01]} 26. b4 {[%emt 0:02:38]} Rh5 {[%emt 0:00:38]} 27. Bxa6 {[%emt 0:21:49]} Bxe4 {[%emt 0:00:39]} 28. Rxe4 {[%emt 0:00:09]} Qxe4 {[%emt 0:00:06]} 29. Bd3 {[%emt 0:00:22]} Rxa5 {[%emt 0:03:11]} 30. Qc3 {[%emt 0:03:00]} Rc5 {[%emt 0:09:26]} 31. Qd2 {[%emt 0:01:10]} Qd5 {[%emt 0:02:19]} 32. bxc5 {[%emt 0:00:34]} Rxb1+ {[%emt 0:00:03]} 33. Bxb1 {[%emt 0:00:02]} Qxc5 {[%emt 0:00:35]} 34. g3 {[%emt 0:01:28]} Kg7 {[%emt 0:02:14]} 35. Qb2+ {[%emt 0:01:12]} Kg8 {[%emt 0:00:55]} 36. Ba2 {[%emt 0:02:52]} Qf5 {[%emt 0:03:32]} 37. Qb8+ {[%emt 0:01:56]} Nc8 {[%emt 0:00:02]} 38. Nd4 {[%emt 0:00:19]} Qd7 {[%emt 0:00:02]} 39. Bd5 {[%emt 0:01:13]} Kg7 {[%emt 0:00:06]} 40. Qb2 {[%emt 0:00:22]} Kg8 {[%emt 0:00:31]} 41. Qb8 {[%emt 0:31:49]} Kg7 {[%emt 0:30:08]} 42. Qb2 {[%emt 0:00:28]} Kg8 {[%emt 0:00:07]} 43. Qb3 {[%emt 0:00:00]} Kg7 {[%emt 0:00:00]} 44. Kg2 {[%emt 0:00:00]} h6 {[%emt 0:00:00]} 45. h4 {[%emt 0:00:00]} Qe7 {[%emt 0:00:00]} 46. Nc6 {[%emt 0:00:00]} Qc7 {[%emt 0:00:00]} 47. Qb2+ {[%emt 0:00:00]} f6 {[%emt 0:00:00]} 48. Nd4 {[%emt 0:00:00]} Qb6 {[%emt 0:00:00]} 49. Ne6+ {[%emt 0:00:00]} Kf7 {[%emt 0:00:00]} 50. Qc3 {[%emt 0:00:00]} Ne7 {[%emt 0:00:00]} 51. Nc7+ {[%emt 0:00:00]} 1-0

[Event "Prague Open 2024"]
[Site "Prague"]
[Date "2024.01.05"]
[Round "1.17"]
[White "Lechowski, Witold"]
[Black "Xie, Felix"]
[Result "0-1"]
[ECO "A05"]
[WhiteElo "1850"]
[BlackElo "2249"]
[Annotator "ChessBase"]
[PlyCount "80"]
[EventDate "2024.01.02"]
[EventType "swiss"]
[EventCountry "CZE"]
[SourceTitle "playchess.com"]
[Source "ChessBase"]
[SourceQuality "1"]
[TimeControl "40/5400+30:1800+30"]

1. Nf3 {[%emt 0:00:03]} Nf6 {[%emt 0:00:14]} 2. g3 {[%emt 0:00:06]} d5 {[%emt 0:00:05]} 3. Bg2 {[%emt 0:00:07]} c5 {[%emt 0:00:05]} 4. O-O {[%emt 0:00:29]} e6 {[%emt 0:00:03]} 5. c4 {[%emt 0:01:27]} d4 {[%emt 0:00:07]} 6. d3 {[%emt 0:00:49]} Nc6 {[%emt 0:00:04]} 7. e3 {[%emt 0:01:10]} Bd6 {[%emt 0:02:17]} 8. exd4 {[%emt 0:04:36]} cxd4 {[%emt 0:00:06]} 9. Na3 {[%emt 0:02:43]} e5 {[%emt 0:08:05]} 10. Re1 {[%emt 0:04:19]} Bg4 {[%emt 0:21:54]} 11. h3 {[%emt 0:12:00]} Bxf3 {[%emt 0:00:35]} 12. Bxf3 {[%emt 0:02:46]} Nd7 {[%emt 0:01:16]} 13. Nc2 {[%emt 0:06:40]} O-O {[%emt 0:01:39]} 14. Rb1 {[%emt 0:03:51]} a5 {[%emt 0:08:54]} 15. b3 {[%emt 0:08:38]} f5 {[%emt 0:12:46]} 16. a3 {[%emt 0:03:33]} Qf6 {[%emt 0:02:31]} 17. Bd5+ {[%emt 0:09:53]} Kh8 {[%emt 0:00:15]} 18. Qh5 {[%emt 0:01:31]} Be7 {[%emt 0:24:04]} 19. f4 {[%emt 0:16:50]} Bd6 {[%emt 0:07:17]} 20. g4 {[%emt 0:06:13]} fxg4 {[%emt 0:00:44]} 21. hxg4 {[%emt 0:00:35]} g6 {[%emt 0:00:52]} 22. Qh3 {[%emt 0:04:00]} Rae8 {[%emt 0:00:18]} 23. g5 {[%emt 0:02:05]} Qg7 {[%emt 0:05:01]} 24. b4 {[%emt 0:04:49]} exf4 {[%emt 0:00:43]} 25. Bb2 {[%emt 0:01:02]} Be5 {[%emt 0:00:43]} 26. b5 {[%emt 0:00:34]} Nd8 {[%emt 0:00:37]} 27. Re2 {[%emt 0:01:31]} Rf5 {[%emt 0:00:38]} 28. Rg2 {[%emt 0:00:50]} Nc5 {[%emt 0:00:55]} 29. Re1 {[%emt 0:00:35]} Ref8 {[%emt 0:01:34]} 30. Qf3 {[%emt 0:00:12]} Re8 {[%emt 0:00:27]} 31. Rxe5 {[%emt 0:00:38]} Rexe5 {[%emt 0:00:32]} 32. Bxd4 {[%emt 0:00:03]} Nde6 {[%emt 0:00:21]} 33. Bxe5 {[%emt 0:00:33]} Qxe5 {[%emt 0:00:15]} 34. Re2 {[%emt 0:01:23]} Rxg5+ {[%emt 0:00:57]} 35. Kf1 {[%emt 0:00:25]} Qf5 {[%emt 0:00:27]} 36. d4 {[%emt 0:00:21]} Rg3 {[%emt 0:00:04]} 37. Qh1 {[%emt 0:00:46]} f3 {[%emt 0:00:17]} 38. Rd2 {[%emt 0:00:20]} Nb3 {[%emt 0:00:38]} 39. Qh2 {[%emt 0:01:01]} Nxd2+ {[%emt 0:00:15]} 40. Qxd2 {[%emt 0:00:14]} Qh3+ {[%emt 0:00:05]} 0-1

[Event "Prague Open 2024"]
[Site "Prague"]
[Date "2024.01.05"]
[Round "1.18"]
[White "Bednar, Marcel"]
[Black "Sedlak, Milan"]
[Result "1-0"]
[ECO "E91"]
[WhiteElo "2249"]
[BlackElo "1850"]
[Annotator "ChessBase"]
[PlyCount "73"]
[EventDate "2024.01.02"]
[EventType "swiss"]
[EventCountry "CZE"]
[SourceTitle "playchess.com"]
[Source "ChessBase"]
[SourceQuality "1"]
[TimeControl "40/5400+30:1800+30"]

1. d4 {[%emt 0:00:04]} g6 {[%emt 0:00:20]} 2. Nf3 {[%emt 0:01:21]} Bg7 {[%emt 0:00:52]} 3. c4 {[%emt 0:00:19]} Nf6 {[%emt 0:02:11]} 4. Nc3 {[%emt 0:00:04]} d6 {[%emt 0:00:32]} 5. e4 {[%emt 0:00:09]} O-O {[%emt 0:01:45]} 6. Be2 {[%emt 0:00:21]} Na6 {[%emt 0:04:58]} 7. Bg5 {[%emt 0:01:14]} h6 {[%emt 0:04:17]} 8. Be3 {[%emt 0:04:46]} Ng4 {[%emt 0:01:16]} 9. Bc1 {[%emt 0:02:04]} e5 {[%emt 0:04:10]} 10. O-O {[%emt 0:05:49]} c6 {[%emt 0:06:37]} 11. dxe5 {[%emt 0:03:17]} dxe5 {[%emt 0:04:50]} 12. b3 {[%emt 0:08:32]} Qe7 {[%emt 0:06:19]} 13. a4 {[%emt 0:01:44]} Rd8 {[%emt 0:02:04]} 14. Ba3 {[%emt 0:00:46]} Rxd1 {[%emt 0:06:24]} 15. Bxe7 {[%emt 0:00:13]} Rxf1+ {[%emt 0:00:08]} 16. Kxf1 {[%emt 0:01:24]} f5 {[%emt 0:05:26]} 17. Rd1 {[%emt 0:06:47]} Be6 {[%emt 0:02:03]} 18. b4 {[%emt 0:03:30]} Nc7 {[%emt 0:03:14]} 19. b5 {[%emt 0:07:08]} Kf7 {[%emt 0:08:47]} 20. Bd8 {[%emt 0:01:35]} Rc8 {[%emt 0:03:19]} 21. bxc6 {[%emt 0:05:57]} bxc6 {[%emt 0:00:17]} 22. h3 {[%emt 0:02:03]} Nf6 {[%emt 0:00:50]} 23. exf5 {[%emt 0:03:42]} Bxf5 {[%emt 0:01:28]} 24. Nxe5+ {[%emt 0:05:53]} Ke8 {[%emt 0:00:18]} 25. Nxc6 {[%emt 0:07:22]} Nd7 {[%emt 0:01:13]} 26. Nb5 {[%emt 0:07:52]} Nxb5 {[%emt 0:01:16]} 27. axb5 {[%emt 0:01:21]} Rxd8 {[%emt 0:00:26]} 28. Nxd8 {[%emt 0:02:55]} Kxd8 {[%emt 0:00:08]} 29. g4 {[%emt 0:01:29]} Be6 {[%emt 0:04:21]} 30. c5 {[%emt 0:01:45]} Kc7 {[%emt 0:01:22]} 31. Rd6 {[%emt 0:00:23]} Bf7 {[%emt 0:01:02]} 32. Rc6+ {[%emt 0:02:23]} Kb8 {[%emt 0:01:07]} 33. b6 {[%emt 0:00:18]} axb6 {[%emt 0:04:45]} 34. cxb6 {[%emt 0:00:50]} Ne5 {[%emt 0:07:07]} 35. Rc7 {[%emt 0:00:45]} Bf8 {[%emt 0:00:22]} 36. f4 {[%emt 0:03:18]} Bd6 {[%emt 0:00:18]} 37. Ra7 {[%emt 0:00:13]} 1-0

[Event "Prague Open 2024"]
[Site "Prague"]
[Date "2024.01.05"]
[Round "1.19"]
[White "Chon, Yongjoon"]
[Black "Eliseev, Sergey"]
[Result "0-1"]
[ECO "D11"]
[WhiteElo "1843"]
[BlackElo "2232"]
[Annotator "ChessBase"]
[PlyCount "60"]
[EventDate "2024.01.02"]
[EventType "swiss"]
[EventCountry "CZE"]
[SourceTitle "playchess.com"]
[Source "ChessBase"]
[SourceQuality "1"]
[TimeControl "40/5400+30:1800+30"]

1. d4 {[%emt 0:00:09]} d5 {[%emt 0:00:08]} 2. c4 {[%emt 0:00:13]} c6 {[%emt 0:00:08]} 3. Nf3 {[%emt 0:00:15]} Nf6 {[%emt 0:00:08]} 4. g3 {[%emt 0:00:16]} Bf5 {[%emt 0:00:24]} 5. Nc3 {[%emt 0:01:00]} e6 {[%emt 0:00:06]} 6. Nh4 {[%emt 0:00:22]} dxc4 {[%emt 0:00:18]} 7. Nxf5 {[%emt 0:00:17]} exf5 {[%emt 0:00:08]} 8. e3 {[%emt 0:00:29]} Bd6 {[%emt 0:01:17]} 9. Bxc4 {[%emt 0:00:30]} O-O {[%emt 0:00:13]} 10. O-O {[%emt 0:00:38]} Nbd7 {[%emt 0:07:58]} 11. f3 {[%emt 0:03:59]} c5 {[%emt 0:04:01]} 12. d5 {[%emt 0:03:45]} h5 {[%emt 0:08:42]} 13. Kg2 {[%emt 0:01:43]} h4 {[%emt 0:06:06]} 14. Bd2 {[%emt 0:15:58]} Qb8 {[%emt 0:29:23]} 15. Be1 {[%emt 0:01:41]} Re8 {[%emt 0:03:15]} 16. Bf2 {[%emt 0:00:54]} a6 {[%emt 0:05:57]} 17. a4 {[%emt 0:01:44]} g6 {[%emt 0:00:09]} 18. Bb3 {[%emt 0:02:28]} Kg7 {[%emt 0:02:10]} 19. Bc2 {[%emt 0:09:07]} Qc7 {[%emt 0:02:19]} 20. a5 {[%emt 0:02:52]} Rh8 {[%emt 0:04:10]} 21. e4 {[%emt 0:00:32]} hxg3 {[%emt 0:00:55]} 22. hxg3 {[%emt 0:00:37]} f4 {[%emt 0:01:59]} 23. g4 {[%emt 0:01:22]} Ne5 {[%emt 0:01:45]} 24. Rh1 {[%emt 0:27:53]} Nfxg4 {[%emt 0:04:50]} 25. Rxh8 {[%emt 0:01:56]} Rxh8 {[%emt 0:00:50]} 26. fxg4 {[%emt 0:00:16]} f3+ {[%emt 0:00:11]} 27. Kg1 {[%emt 0:14:34]} Qd7 {[%emt 0:00:04]} 28. Bg3 {[%emt 0:00:20]} Qxg4 {[%emt 0:00:15]} 29. Kf2 {[%emt 0:00:21]} Rh2+ {[%emt 0:06:31]} 30. Bxh2 {[%emt 0:00:25]} Qg2+ {[%emt 0:00:01]} 0-1